bitfinex-derivatives/quotes_ETHF0:USTF0_20250320
["timestamp","ask_amount","ask_price","bid_price","bid_amount"]
[1742514205566,2.38463,1980.1,1980.0,2.36946284]
[1742514205780,1.01063,1980.1,1980.0,2.36946284]
[1742514206177,4.24258,1980.3,1980.2,1.01053]
[1742514206571,5.63208,1980.3,1980.2,1.01053]
[1742514206769,5.63208,1980.3,1980.2,2.36173]
[1742514209477,3.232,1980.3,1980.2,2.36173]
[1742514210076,4.24253,1980.3,1980.2,2.36173]
[1742514210276,4.5927,1980.3,1980.2,2.36173]
[1742514210476,3.232,1980.3,1980.2,2.36173]
[1742514210871,1.2764,1980.4,1980.3,1.01053]
[1742514211073,2.28688,1980.4,1980.3,2.31823]
[1742514211275,1.01047,1980.5,1980.4,1.01043]
[1742514211479,2.28687,1980.5,1980.4,3.67223]
[1742514211780,5.51887,1980.5,1980.4,3.67223]
[1742514214079,4.5084,1980.5,1980.4,3.67223]
[1742514214279,3.232,1980.5,1980.4,3.67223]
[1742514214878,4.24243,1980.5,1980.4,3.67223]
[1742514215078,4.5875,1980.5,1980.4,3.67223]
[1742514215279,4.24142,1980.6,1980.5,1.01043]
[1742514215482,4.24142,1980.6,1980.5,2.36563]
[1742514216883,1.01042,1980.6,1980.5,2.36563]
[1742514217083,4.24042,1980.6,1980.5,2.36563]
[1742514217780,3.23,1980.6,1980.5,2.36563]
[1742514217983,2.36586,1980.7,1980.6,1.01038]
[1742514218283,2.36586,1980.7,1980.6,2.39278]
[1742514239698,2.52595,1980.6,1980.1,5.73438]
[1742514239996,1.67563,1980.5,1980.4,2.42166]
[1742514240183,3.62043,1980.5,1980.4,2.42166]
[1742514242893,3.62043,1980.5,1980.4,2.42168]
[1742514244088,3.62043,1980.5,1980.4,1.01048]
[1742514246296,1.01048,1980.4,1980.3,2.37022]
[1742514246502,5.57028,1980.4,1980.3,2.37022]
[1742514248697,5.57028,1980.4,1980.3,1.3597]
[1742514248907,1.01058,1980.2,1980.1,3.2078]
[1742514249112,4.23958,1980.2,1980.1,4.21843]
[1742514249501,5.58368,1980.2,1980.1,3.2078]
[1742514249705,5.58368,1980.2,1980.1,4.21843]
[1742514249906,5.58368,1980.2,1980.1,1.01063]
[1742514250515,5.58368,1980.2,1980.1,2.30143]
[1742514253317,5.58368,1980.2,1980.1,1.2908]
[1742514253518,5.58368,1980.2,1980.1,2.30143]
[1742514254512,5.58368,1980.2,1980.1,2.96643]
[1742514255225,1.01056,1980.3,1980.2,1.01058]
[1742514255521,4.23952,1980.4,1980.3,1.01053]
[1742514255816,2.31756,1980.5,1980.4,1.01048]
[1742514256023,3.229,1980.5,1980.4,3.02108]
[1742514256919,5.54023,1980.5,1980.4,2.34838]
[1742514257119,6.23763,1980.5,1980.4,1.3379]
[1742514257311,1.01058,1980.3,1980.2,1.01054]
[1742514257511,2.97242,1980.4,1980.3,1.01053]
[1742514258320,2.97238,1980.4,1980.3,1.01053]
[1742514258619,1.9619,1980.4,1980.3,1.01053]
[1742514258817,1.3008,1980.4,1980.3,1.01053]
[1742514259019,3.229,1980.5,1980.4,1.01048]
[1742514259210,2.98572,1980.6,1980.5,1.01043]
[1742514259416,6.21471,1980.6,1980.5,1.01043]
[1742514260120,6.21471,1980.6,1980.5,2.30453]
[1742514263524,2.98571,1980.6,1980.5,2.30453]
[1742514263824,6.21471,1980.6,1980.5,2.30453]
[1742514264223,6.21468,1980.6,1980.5,2.30453]
[1742514264524,5.2043,1980.6,1980.5,2.30453]
[1742514264723,6.21468,1980.6,1980.5,2.30453]
[1742514265024,5.2043,1980.6,1980.5,2.30453]
[1742514265620,1.3008,1980.6,1980.5,2.30453]
[1742514265825,4.5298,1980.6,1980.5,2.30453]
[1742514268525,5.54018,1980.6,1980.5,2.30453]
[1742514268728,4.5298,1980.6,1980.5,2.30453]
[1742514270715,3.91408284,1980.8,1980.7,1.01032]
[1742514270919,3.23658284,1980.8,1980.7,1.01032]
[1742514271418,3.23658284,1980.8,1980.7,1.71402]
[1742514271822,4.24685284,1980.8,1980.7,1.71402]
[1742514272120,5.52335284,1980.8,1980.7,1.71402]
[1742514272526,5.52335284,1980.8,1980.7,1.01032]
[1742514275127,4.51308284,1980.8,1980.7,1.01032]
[1742514275332,5.52335284,1980.8,1980.7,1.01032]
[1742514276633,1.01032,1980.7,1980.6,1.01034]
[1742514276833,3.03942,1980.7,1980.6,1.01034]
[1742514283841,1.01038,1980.6,1980.5,2.36838]
[1742514284031,6.25418,1980.6,1980.5,2.36838]
[1742514285030,1.01063,1980.1,1979.8,3.2078]
[1742514285236,7.45643,1980.1,1979.9,1.3849]
[1742514285442,7.45643,1980.1,1979.9,2.39562]
[1742514285740,7.45643,1980.1,1979.9,1.3849]
[1742514286137,8.80613,1980.1,1979.9,1.3849]
[1742514287036,8.80613,1980.1,1979.9,2.39562]
[1742514287939,8.80613,1980.1,1979.9,1.3849]
[1742514288535,8.80613,1980.1,1979.9,2.39563]
[1742514288739,8.80613,1980.1,1979.9,1.3849]
[1742514289945,8.80613,1980.1,1979.9,2.39562]
[1742514290144,8.80613,1980.1,1979.9,1.3849]
[1742514290340,8.80613,1980.1,1980.0,1.35048284]
[1742514293446,8.80613,1980.1,1980.0,0.00758284]
[1742514295445,8.80613,1980.1,1980.0,1.36968284]
[1742514300747,8.79813,1980.1,1980.0,1.36968284]
[1742514301050,8.79813,1980.1,1980.0,2.38036284]
[1742514301444,8.79813,1980.1,1980.0,1.36968284]
[1742514302454,8.79813,1980.1,1980.0,0.00758284]
[1742514304047,8.79813,1980.1,1980.0,1.34948284]
[1742514305557,8.79813,1980.1,1980.0,0.00758284]
[1742514305949,7.7875,1980.1,1979.7,0.649]
[1742514306156,1.01089,1979.6,1979.5,0.6656]
[1742514306455,4.24089,1979.6,1979.5,1.67654]
[1742514307058,5.52589,1979.6,1979.5,1.67654]
[1742514307650,5.52589,1979.6,1979.5,1.01094]
[1742514308051,1.01094,1979.5,1979.4,1.65623284]
[1742514308254,2.29594,1979.5,1979.4,1.65623284]
[1742514309453,2.29594,1979.5,1979.4,2.93773284]
[1742514313052,2.29594,1979.5,1979.4,1.28908284]
[1742514313261,2.29594,1979.5,1979.4,0.00758284]
[1742514316562,2.29594,1979.5,1979.4,1.37258284]
[1742514317758,2.29594,1979.5,1979.4,0.00758284]
[1742514322065,2.29594,1979.5,1979.4,2.84e-06]
[1742514322066,4.79594,1979.5,1979.4,2.84e-06]
[1742514322258,4.88423024,1979.5,1979.4,2.84e-06]
[1742514323571,4.88423684,1979.5,1979.4,2.84e-06]
[1742514328570,4.88423283,1979.5,1979.4,2.84e-06]
[1742514330975,2.38423283,1979.5,1979.4,2.84e-06]
[1742514331774,2.38423262,1979.5,1979.4,2.84e-06]
[1742514336878,2.38423259,1979.5,1979.4,2.84e-06]
[1742514339981,2.38423273,1979.5,1979.4,2.84e-06]
[1742514341574,2.29594,1979.5,1979.4,2.84e-06]
[1742514341781,2.38423269,1979.5,1979.4,2.84e-06]
[1742514346082,1.01104,1979.3,1979.2,0.669]
[1742514346379,7.44984,1979.3,1979.2,0.669]
[1742514346881,1.01109,1979.2,1979.1,0.6478]
[1742514347083,2.40499,1979.2,1979.1,0.6478]
[1742514348287,5.61279,1979.2,1979.1,0.6478]
[1742514349685,5.61279,1979.2,1979.1,2.051]
[1742514349985,5.61279,1979.2,1979.1,2.7486]
[1742514351876,5.61279,1979.2,1979.1,0.882]
[1742514352077,1.01114,1979.1,1979.0,5.24e-06]
[1742514352282,6.90694,1979.1,1979.0,5.24e-06]
[1742514352685,6.99524641,1979.1,1979.0,5.24e-06]
[1742514355688,6.99524745,1979.1,1979.0,5.24e-06]
[1742514357293,6.99525267,1979.1,1979.0,5.24e-06]
[1742514360591,6.99525317,1979.1,1979.0,5.24e-06]
[1742514360797,6.90694,1979.1,1979.0,5.24e-06]
[1742514360990,6.9952465,1979.1,1979.0,5.24e-06]
[1742514361182,6.99524664,1979.1,1979.0,5.24e-06]
[1742514363098,6.34494664,1979.1,1979.0,5.24e-06]
[1742514363297,5.57784,1979.1,1979.0,5.24e-06]
[1742514364292,5.57784,1979.1,1979.0,1.37920524]
[1742514368903,5.57784,1979.1,1979.0,5.24e-06]
[1742514369898,5.57784,1979.1,1978.5,1.382]
[1742514369899,1.0114,1978.6,1978.5,1.382]
[1742514370098,4.2424,1978.6,1978.5,1.382]
[1742514370508,5.6106,1978.6,1978.5,1.382]
[1742514377315,1.01145,1978.5,1978.4,1.3564]
[1742514377515,5.62975,1978.5,1978.4,1.3564]
[1742514377811,1.01155,1978.3,1978.2,1.3424]
[1742514378008,7.45135,1978.3,1978.2,1.3424]
[1742514378514,8.78315,1978.3,1978.2,1.3424]
[1742514379612,1.01165,1978.1,1978.0,1.3313]
[1742514379914,7.45145,1978.1,1978.0,1.3313]
[1742514381118,7.45145,1978.1,1978.0,2.7063]
[1742514385217,1.01188,1977.7,1977.6,1.01188]
[1742514385513,4.24385,1977.8,1977.7,2.0001]
[1742514385719,5.62285,1977.8,1977.7,3.01196]
[1742514385916,5.62285,1977.8,1977.7,2.0001]
[1742514386715,5.62285,1977.8,1977.7,3.01196]
[1742514387109,4.24385,1977.8,1977.7,3.01196]
[1742514389007,4.24385,1977.8,1977.7,2.0001]
[1742514397015,1.01186,1977.7,1977.6,0.6967]
[1742514397215,1.01196,1977.5,1977.4,2.0205]
[1742514397428,1.01196,1977.5,1977.4,2.6701]
[1742514397626,1.01196,1977.5,1977.4,3.68211]
[1742514397627,2.35846,1977.5,1977.4,3.68211]
[1742514399228,1.01196,1977.5,1977.4,3.68211]
[1742514399817,2.35846,1977.5,1977.4,3.68211]
[1742514410234,1.3465,1977.5,1977.4,6.18211]
[1742514411137,2.35846,1977.5,1977.4,6.18211]
[1742514412441,1.3465,1977.5,1977.4,6.18211]
[1742514413037,2.35846,1977.5,1977.4,6.18211]
[1742514413238,2.35846,1977.5,1977.4,2.36911]
[1742514415039,1.3465,1977.5,1977.4,2.36911]
[1742514416139,2.35846,1977.5,1977.4,2.36911]
[1742514416339,1.3465,1977.5,1977.4,2.36911]
[1742514417440,2.35846,1977.5,1977.4,2.36911]
[1742514418941,1.01201,1977.4,1977.3,4.21981]
[1742514419133,3.65971,1977.4,1977.3,4.21981]
[1742514419743,3.65971,1977.4,1977.3,1.01201]
[1742514420039,2.6477,1977.4,1977.3,1.01201]
[1742514420240,2.6477,1977.4,1977.3,2.42951]
[1742514420542,3.65971,1977.4,1977.3,2.42951]
[1742514420743,2.6477,1977.4,1977.3,2.42951]
[1742514421239,2.6477,1977.4,1977.3,5.63731]
[1742514428146,4.21946,1978.1,1978.0,1.0117]
[1742514428346,7.45146,1978.1,1978.0,1.0117]
[1742514429045,1.3807,1978.2,1978.1,1.01165]
[1742514429245,3.232,1978.6,1978.1,3.2078]
[1742514429441,4.24329,1978.9,1978.5,2.52852]
[1742514429637,3.232,1978.9,1978.5,3.86632]
[1742514429841,1.01135,1978.8,1978.7,1.01132]
[1742514430038,4.24328,1978.9,1978.8,1.01129]
[1742514430244,1.01137,1978.7,1978.6,1.01134]
[1742514431345,3.232,1978.7,1978.4,3.2078]
[1742514431546,3.232,1978.7,1978.3,1.01151]
[1742514431547,1.0115,1978.4,1978.3,1.01151]
[1742514432556,1.69349,1978.5,1978.4,1.0115]
[1742514432752,1.363,1978.5,1978.4,1.0115]
[1742514432948,3.2078,1978.8,1978.5,2.52857]
[1742514433153,0.681,1978.7,1978.6,1.0114]
[1742514433955,2.0774,1978.7,1978.6,1.0114]
[1742514434157,2.0774,1978.7,1978.6,2.3162]
[1742514438559,2.0774,1978.7,1978.6,1.0114]
[1742514439561,2.0774,1978.7,1978.6,2.299]
[1742514440157,1.3964,1978.7,1978.6,5.5068]
[1742514440859,0.00758284,1979.0,1978.9,1.01124]
[1742514441559,0.00758284,1979.0,1978.9,1.67714]
[1742514442157,0.00758284,1979.0,1978.9,2.96474]
[1742514443653,0.00758284,1979.0,1978.9,5.46474]
[1742514443855,4.5177,1979.4,1979.3,1.01104]
[1742514444052,1.2877,1979.4,1979.3,1.01104]
[1742514444252,2.29869,1979.4,1979.3,1.01104]
[1742514444458,1.2877,1979.4,1979.3,1.01104]
[1742514445064,1.2877,1979.4,1979.3,2.94174]
[1742514445265,1.2877,1979.4,1979.3,6.14954]
[1742514446063,0.00758284,1979.5,1979.4,1.01099]
[1742514446365,0.00758284,1979.5,1979.4,2.32779]
[1742514449464,0.6468,1979.9,1979.8,1.01078]
[1742514450063,0.6468,1979.9,1979.8,2.39548]
[1742514450363,1.65753,1979.9,1979.8,1.01078]
[1742514450566,1.01084,1979.8,1979.7,1.01079]
[1742514450766,1.01089,1979.6,1979.5,1.01089]
[1742514450960,1.66326,1979.7,1979.6,1.01089]
[1742514457669,0.6524,1979.7,1979.6,1.01089]
[1742514457871,1.66324,1979.7,1979.6,1.01089]
[1742514458067,0.6524,1979.7,1979.6,1.01089]
[1742514459071,1.66324,1979.7,1979.6,2.31589]
[1742514459278,0.6524,1979.7,1979.6,2.31589]
[1742514459778,2.34816,1979.9,1979.8,1.01078]
[1742514460079,5.57716,1979.9,1979.8,1.01078]
[1742514465777,5.57716,1979.9,1979.8,2.34308]
[1742514466777,6.94006,1979.9,1979.8,2.34308]
[1742514468279,5.9293,1979.9,1979.8,2.34308]
[1742514468481,6.94003,1979.9,1979.8,2.34308]
[1742514468781,5.9293,1979.9,1979.8,2.34308]
[1742514469676,5.2825,1979.9,1979.8,2.34308]
[1742514469981,1.3629,1979.9,1979.8,2.34308]
[1742514470283,0.00758284,1980.0,1979.9,1.01073]
[1742514470582,0.00758284,1980.0,1979.9,4.21853]
[1742514470780,1.29938284,1980.0,1979.9,1.01073]
[1742514471080,0.00758284,1980.0,1979.9,4.21853]
[1742514471278,0.00758284,1980.0,1979.9,1.01073]
[1742514471479,1.29938284,1980.0,1979.9,4.21853]
[1742514471675,1.29938284,1980.0,1979.9,1.01073]
[1742514472884,0.00758284,1980.0,1979.9,4.21853]
[1742514477681,0.00758284,1980.0,1979.9,1.01073]
[1742514478274,0.00758284,1980.0,1979.9,2.38673]
[1742514478883,0.00758284,1980.0,1979.9,5.59453]
[1742514483787,5.54068,1980.4,1980.3,1.01053]
[1742514483986,4.5302,1980.4,1980.3,1.01053]
[1742514484485,5.8569,1980.4,1980.3,1.01053]
[1742514484688,6.86738,1980.4,1980.3,1.01053]
[1742514485687,2.6289,1980.4,1980.3,1.01053]
[1742514486087,3.63938,1980.4,1980.3,1.01053]
[1742514488692,3.63942,1980.4,1980.3,1.01053]
[1742514488891,3.63942,1980.4,1980.2,2.29867]
[1742514488892,1.01053,1980.3,1980.2,2.29867]
[1742514489091,2.30163,1980.3,1980.2,2.29867]
[1742514489695,5.52963,1980.3,1980.2,2.29867]
[1742514491497,4.5191,1980.3,1980.2,2.29867]
[1742514493792,5.52963,1980.3,1980.2,2.29867]
[1742514494898,4.5191,1980.3,1980.2,2.29867]
[1742514500503,1.2911,1980.3,1980.2,2.29867]
[1742514504605,1.3022,1980.4,1980.3,1.01053]
[1742514504804,2.6905,1980.4,1980.3,3.67353]
[1742514506504,2.6905,1980.4,1980.3,2.98553]
[1742514508206,0.00758284,1980.5,1980.4,1.01048]
[1742514508509,2.0797,1980.9,1980.8,1.01027]
[1742514509100,2.0797,1980.9,1980.8,3.03597]
[1742514509299,1.4013,1980.9,1980.8,6.24377]
[1742514510905,4.6283,1980.9,1980.7,0.00758284]
[1742514511109,0.6886,1980.8,1980.7,2.41690284]
[1742514511303,2.0868,1980.8,1980.7,2.41690284]
[1742514512612,1.3982,1980.8,1980.7,2.41690284]
[1742514513813,3.9156,1980.9,1980.7,2.41690284]
[1742514513814,3.227,1980.9,1980.7,2.41690284]
[1742514514013,3.227,1980.9,1980.8,2.41377]
[1742514514014,1.3928,1980.9,1980.8,2.41377]
[1742514514213,1.3928,1980.9,1980.8,3.11717]
[1742514515415,1.3928,1980.9,1980.8,6.32497]
[1742514515917,0.00505524,1981.0,1980.9,1.01022]
[1742514516119,1.34795524,1981.0,1980.9,2.96082]
[1742514517913,2.35812524,1981.0,1980.9,2.96082]
[1742514518217,2.35812524,1981.0,1980.8,3.2078]
[1742514518418,3.01602,1980.9,1980.8,4.21807]
[1742514518620,2.0058,1980.9,1980.8,1.01027]
[1742514518819,6.24202,1980.9,1980.8,1.01027]
[1742514519020,5.2318,1980.9,1980.8,1.01027]
[1742514519210,6.24202,1980.9,1980.8,1.01027]
[1742514519611,5.2318,1980.9,1980.8,1.01027]
[1742514519815,6.24202,1980.9,1980.8,1.01027]
[1742514520304,1.01027,1980.8,1980.7,2.39807284]
[1742514520512,2.0605,1980.8,1980.7,1.01787284]
[1742514520709,2.0605,1980.8,1980.7,0.00758284]
[1742514520906,3.07077,1980.8,1980.7,0.00758284]
[1742514521111,3.07077,1980.8,1980.7,1.01790284]
[1742514521710,3.07077,1980.8,1980.7,0.00758284]
[1742514522117,3.07077,1980.8,1980.7,1.01790284]
[1742514522413,3.07077,1980.8,1980.7,0.00758284]
[1742514522414,6.29677,1980.8,1980.7,0.00758284]
[1742514522615,6.29677,1980.8,1980.7,1.01790284]
[1742514522814,6.29677,1980.8,1980.7,0.00758284]
[1742514523016,6.29677,1980.8,1980.7,1.01790284]
[1742514523521,6.29677,1980.8,1980.7,0.00758284]
[1742514533528,6.29677,1980.8,1980.7,1.42278284]
[1742514541724,1.01047,1980.5,1980.4,1.01044]
[1742514542325,2.30547,1980.5,1980.4,1.01044]
[1742514543638,1.01048,1980.4,1980.3,2.35238284]
[1742514543835,2.34128,1980.4,1980.3,1.34188284]
[1742514544036,5.56728,1980.4,1980.3,2.35241284]
[1742514544639,5.56728,1980.4,1980.3,1.34188284]
[1742514544939,5.56728,1980.4,1980.3,2.35241284]
[1742514546434,4.5568,1980.4,1980.3,2.35241284]
[1742514546834,3.226,1980.4,1980.3,2.35241284]
[1742514548937,1.01039,1980.6,1980.5,1.01043]
[1742514548938,5.51819,1980.6,1980.5,1.01043]
[1742514549337,4.21816,1980.7,1980.6,1.01038]
[1742514549539,1.01038,1980.6,1980.5,2.34199]
[1742514549726,1.01038,1980.6,1980.5,1.68809]
[1742514549926,2.36208,1980.6,1980.5,1.68809]
[1742514550441,1.01038,1980.6,1980.5,1.68809]
[1742514550738,2.37638,1980.6,1980.5,3.07529]
[1742514552734,4.23636,1980.7,1980.6,1.01038]
[1742514553138,5.59686,1980.7,1980.6,2.41838]
[1742514553831,5.59686,1980.7,1980.6,1.408]
[1742514556744,5.59686,1980.7,1980.6,2.41838]
[1742514557445,2.37086,1980.7,1980.6,1.408]
[1742514557648,5.59686,1980.7,1980.6,1.408]
[1742514559347,8.80466,1980.7,1980.6,1.408]
[1742514561347,8.80466,1980.7,1980.6,2.41838]
[1742514561949,8.80466,1980.7,1980.6,1.408]
[1742514562847,8.80466,1980.7,1980.6,2.41838]
[1742514563043,8.80466,1980.7,1980.6,1.408]
[1742514564249,8.80466,1980.7,1980.6,2.41838]
[1742514564752,8.80466,1980.7,1980.6,1.408]
[1742514566352,8.80466,1980.7,1980.3,0.68188284]
[1742514566353,1.01048,1980.4,1980.3,0.68188284]
[1742514566648,1.01048,1980.4,1980.3,1.69237284]
[1742514567048,4.90238,1980.5,1980.4,1.01048]
[1742514568253,4.23643,1980.5,1980.4,2.35918]
[1742514568646,3.226,1980.5,1980.4,2.35918]
[1742514569249,2.3992,1980.6,1980.5,1.01043]
[1742514569451,5.6252,1980.6,1980.5,3.06493]
[1742514570948,4.21816,1980.7,1980.5,3.06493]
[1742514571258,5.62596,1980.7,1980.6,3.08318]
[1742514571452,8.85196,1980.7,1980.6,3.08318]
[1742514572551,6.4338,1980.7,1980.6,3.08318]
[1742514572751,3.07171,1980.8,1980.7,1.01032]
[1742514572952,6.29771,1980.8,1980.7,2.40332]
[1742514573955,3.07171,1980.8,1980.7,2.40332]
[1742514574152,4.6338,1980.8,1980.7,2.40332]
[1742514574357,3.226,1980.8,1980.7,2.40332]
[1742514575255,0.00505524,1981.0,1980.9,1.01022]
[1742514575459,3.23105524,1981.0,1980.9,1.01022]
[1742514575661,4.55725524,1981.0,1980.9,2.38222]
[1742514576258,5.56742524,1981.0,1980.9,2.38222]
[1742514576463,1.33125524,1981.0,1980.9,3.05342]
[1742514576761,4.55725524,1981.0,1980.9,3.05342]
[1742514576962,0.00505524,1981.0,1980.9,3.05342]
[1742514577361,1.36155524,1981.0,1980.9,3.05342]
[1742514577961,2.37172524,1981.0,1980.9,3.05342]
[1742514578265,5.59672524,1981.0,1980.9,1.372]
[1742514578666,5.59672524,1981.0,1980.9,2.38222]
[1742514579279,1.01022,1980.9,1980.8,1.01026]
[1742514579573,3.76672,1980.9,1980.8,1.3526]
[1742514579873,1.01032,1980.7,1980.6,1.01033]
[1742514580069,1.01032,1980.7,1980.6,2.38063]
[1742514580270,1.01032,1980.7,1980.6,1.3703]
[1742514580570,2.37382,1980.7,1980.6,1.3703]
[1742514580770,2.37382,1980.7,1980.6,2.38068]
[1742514581069,2.37382,1980.7,1980.6,1.3703]
[1742514581376,2.37382,1980.7,1980.6,2.38068]
[1742514582178,2.37382,1980.7,1980.6,1.3703]
[1742514582371,1.01043,1980.5,1980.4,1.01043]
[1742514582772,7.02642,1980.6,1980.5,1.01043]
[1742514584175,4.6339,1980.6,1980.5,1.01043]
[1742514584568,3.225,1980.6,1980.5,1.01043]
[1742514585070,4.6339,1980.6,1980.5,1.01043]
[1742514585471,5.64428,1980.6,1980.5,1.01043]
[1742514587281,4.6339,1980.6,1980.5,1.01043]
[1742514587682,5.64428,1980.6,1980.5,1.01043]
[1742514590484,4.6339,1980.6,1980.5,1.01043]
[1742514590882,5.64428,1980.6,1980.5,1.01043]
[1742514592087,4.6339,1980.6,1980.5,1.01043]
[1742514593690,5.64428,1980.6,1980.5,1.01043]
[1742514593889,4.6339,1980.6,1980.5,1.01043]
[1742514594887,5.64428,1980.6,1980.5,1.01043]
[1742514595190,4.6339,1980.6,1980.5,1.01043]
[1742514596391,5.64428,1980.6,1980.5,1.01043]
[1742514597786,1.01043,1980.5,1980.4,1.01047]
[1742514597989,3.75983,1980.5,1980.4,1.01047]
[1742514600391,1.3663,1980.5,1980.4,2.31607]
[1742514601194,5.50027,1980.7,1980.4,1.3056]
[1742514601388,5.50027,1980.7,1980.6,1.01038]
[1742514601690,8.72527,1980.7,1980.6,1.01038]
[1742514601991,3.2078,1980.9,1980.8,1.01023]
[1742514602199,1.34215524,1981.0,1980.9,1.01022]
[1742514602395,3.23005524,1981.0,1980.9,1.01022]
[1742514602590,3.23005524,1981.0,1980.9,2.39062]
[1742514602788,1.37825524,1981.0,1980.9,2.39062]
[1742514603896,2.38842524,1981.0,1980.9,2.39062]
[1742514604093,3.90370524,1981.0,1980.7,1.01027]
[1742514604298,1.01031,1980.8,1980.7,2.35137]
[1742514604697,2.38061,1980.8,1980.7,2.35137]
[1742514606891,1.01032,1980.7,1980.6,1.01035]
[1742514607196,5.61742,1980.7,1980.6,1.01035]
[1742514609895,4.6071,1980.7,1980.6,1.01035]
[1742514610097,1.3371,1980.9,1980.8,1.01027]
[1742514610402,4.5421,1980.9,1980.8,1.01027]
[1742514610598,1.3171,1980.9,1980.8,1.01027]
[1742514610796,3.23005524,1981.0,1980.9,1.01022]
[1742514611100,3.23005524,1981.0,1980.9,2.29012]
[1742514611297,4.54715524,1981.0,1980.9,2.29012]
[1742514611703,5.55732524,1981.0,1980.9,2.29012]
[1742514612995,4.54715524,1981.0,1980.9,2.29012]
[1742514614802,3.23005524,1981.0,1980.9,2.29012]
[1742514614994,0.00505524,1981.0,1980.9,2.29012]
[1742514615599,5.39820171,1981.4,1981.2,1.01007]
[1742514615600,1.3497,1981.3,1981.2,1.01007]
[1742514615799,1.3497,1981.3,1981.2,2.97617]
[1742514622612,3.23258284,1981.4,1981.3,1.01002]
[1742514622814,4.53898284,1981.4,1981.3,3.04262]
[1742514623109,1.31398284,1981.4,1981.3,3.04262]
[1742514623707,1.31398284,1981.4,1981.3,6.25042]
[1742514624012,2.7123,1981.7,1981.6,1.00987]
[1742514624204,5.9363,1981.7,1981.5,1.00989]
[1742514624399,1.3064,1981.6,1981.5,1.00989]
[1742514625714,2.31627,1981.6,1981.5,1.00989]
[1742514626209,2.31627,1981.6,1981.4,2.39031284]
[1742514626414,1.2811,1981.5,1981.4,2.39031284]
[1742514628316,2.29102,1981.5,1981.4,2.39031284]
[1742514628517,5.51502,1981.5,1981.4,2.39031284]
[1742514629012,5.51502,1981.5,1981.4,0.00758284]
[1742514631919,5.51502,1981.5,1981.4,1.01755284]
[1742514636719,5.51502,1981.5,1981.4,0.00758284]
[1742514637226,5.51502,1981.5,1981.4,1.38568284]
[1742514637921,4.5051,1981.5,1981.4,1.38568284]
[1742514638224,3.224,1981.5,1981.4,2.39565284]
[1742514638723,3.224,1981.5,1981.4,3.03705284]
[1742514638923,3.224,1981.5,1981.4,3.71805284]
[1742514639226,49.20132,1981.9,1981.4,3.71805284]
[1742514639227,2.52429,1981.9,1981.6,1.00981]
[1742514639427,4.5826,1981.7,1981.6,1.00981]
[1742514639730,3.224,1981.8,1981.7,1.00981]
[1742514639925,1.00976,1981.8,1981.7,1.00981]
[1742514640124,1.00976,1981.8,1981.5,5.73252]
[1742514640125,5.59235,1981.9,1981.8,1.00976]
[1742514641127,4.5826,1981.9,1981.8,1.00976]
[1742514641532,5.59231,1981.9,1981.8,1.00976]
[1742514641732,4.5826,1981.9,1981.8,1.00976]
[1742514642419,5.59231,1981.9,1981.8,1.00976]
[1742514642725,5.59235,1981.9,1981.8,1.00976]
[1742514642930,4.5826,1981.9,1981.8,1.00976]
[1742514643522,4.5826,1981.9,1981.8,1.68106]
[1742514643923,3.2078,1982.0,1981.9,1.00971]
[1742514644221,6.4308,1982.0,1981.9,1.00971]
[1742514644632,7.8344,1982.0,1981.9,1.00971]
[1742514645134,8.84406,1982.0,1981.9,1.00971]
[1742514645320,1.00975,1981.9,1981.8,1.00974]
[1742514645527,3.79085,1981.9,1981.8,1.00974]
[1742514645722,3.79085,1981.9,1981.5,3.1778]
[1742514646030,4.6266,1981.8,1981.7,1.00981]
[1742514646230,5.63636,1981.8,1981.7,1.00981]
[1742514646632,4.6266,1981.8,1981.7,1.00981]
[1742514647532,5.63636,1981.8,1981.7,1.00981]
[1742514648337,1.4036,1981.8,1981.7,1.00981]
[1742514649028,1.00961,1982.2,1982.1,1.00959]
[1742514649244,6.93601,1982.2,1982.1,1.00959]
[1742514651036,1.00969,1982.0,1981.9,1.00966]
[1742514651836,2.29465,1982.1,1982.0,1.00966]
[1742514652137,1.285,1981.9,1981.8,2.29846]
[1742514652840,1.00965,1982.1,1982.0,1.00966]
[1742514653228,4.5737,1982.2,1982.0,1.00966]
[1742514653229,4.5737,1982.2,1982.0,1.00963]
[1742514653433,1.00962,1982.1,1982.0,1.00963]
[1742514654232,1.3206,1982.1,1982.0,1.00963]
[1742514654538,2.33021,1982.1,1982.0,1.00963]
[1742514656138,1.3206,1982.1,1982.0,1.00963]
[1742514656540,2.33021,1982.1,1982.0,1.00963]
[1742514656741,1.3206,1982.1,1982.0,1.00963]
[1742514658340,2.33021,1982.1,1982.0,1.00963]
[1742514658535,1.3206,1982.1,1982.0,1.00963]
[1742514659443,2.33021,1982.1,1982.0,1.00963]
[1742514661147,1.3206,1982.1,1982.0,1.00963]
[1742514661650,1.3507,1982.2,1982.1,1.00961]
[1742514661849,5.57646,1982.2,1982.1,1.00961]
[1742514662343,4.5669,1982.2,1982.1,1.00961]
[1742514662541,1.3439,1982.2,1982.1,1.00961]
[1742514662741,1.3439,1982.2,1982.1,1.67151]
[1742514663544,2.3535,1982.2,1982.0,1.3116]
[1742514663749,3.7067,1982.2,1982.1,1.00961]
[1742514664950,1.00961,1982.1,1982.0,1.3116]
[1742514665150,1.00966,1982.0,1981.9,1.00969]
[1742514665357,5.52785,1982.1,1982.0,1.00966]
[1742514665554,4.23265,1982.1,1982.0,1.00966]
[1742514665943,1.00966,1982.0,1981.9,2.38948]
[1742514666445,1.00973,1981.9,1981.6,0.6886]
[1742514666750,3.8987,1981.9,1981.8,1.00976]